[Event "Early-Titled-Tuesday-Blitz-September-05-2023"]
[Site "Chess.com"]
[Date "2023.09.05"]
[Round "1"]
[White "Trendle"]
[Black "ChessWarrior3"]
[Result "1-0"]
[WhiteElo "2714"]
[BlackElo "2406"]
[TimeControl "180+1"]
[EndTime "8:09:58 PDT"]
[Termination "Trendle won by checkmate"]

1. e4 {[%clk 0:03:00.9]} 1... e5 {[%clk 0:02:54.9]} 2. Nf3 {[%clk 0:03:00.6]}
2... Nc6 {[%clk 0:02:54.6]} 3. Bc4 {[%clk 0:03:00.9]} 3... Bc5 {[%clk
0:02:53.2]} 4. d3 {[%clk 0:03:00.1]} 4... h6 {[%clk 0:02:50]} 5. c3 {[%clk
0:02:56.1]} 5... Nf6 {[%clk 0:02:38]} 6. Nbd2 {[%clk 0:02:55]} 6... a5 {[%clk
0:02:35.8]} 7. a4 {[%clk 0:02:52.9]} 7... d6 {[%clk 0:02:30.3]} 8. h3 {[%clk
0:02:48.1]} 8... g5 {[%clk 0:02:24.1]} 9. Bb5 {[%clk 0:02:44.5]} 9... g4 {[%clk
0:02:15.8]} 10. hxg4 {[%clk 0:02:43.4]} 10... Bxg4 {[%clk 0:02:15.7]} 11. Nf1
{[%clk 0:02:30.4]} 11... d5 {[%clk 0:02:11.2]} 12. Be3 {[%clk 0:02:11.3]} 12...
dxe4 {[%clk 0:02:00]} 13. Bxc5 {[%clk 0:01:59.6]} 13... exf3 {[%clk 0:02:00.1]}
14. gxf3 {[%clk 0:01:59.5]} 14... Qd5 {[%clk 0:01:57.3]} 15. Ne3 {[%clk
0:01:35.4]} 15... Qxf3 {[%clk 0:01:55.9]} 16. Qxf3 {[%clk 0:01:21.9]} 16... Bxf3
{[%clk 0:01:56.8]} 17. Rh3 {[%clk 0:01:22.3]} 17... Nd7 {[%clk 0:01:37.8]} 18.
Ba3 {[%clk 0:01:15.6]} 18... e4 {[%clk 0:01:35.9]} 19. dxe4 {[%clk 0:00:52.6]}
19... Bxe4 {[%clk 0:01:36.8]} 20. O-O-O {[%clk 0:00:52.5]} 20... O-O-O {[%clk
0:01:24.8]} 21. Rh4 {[%clk 0:00:52]} 21... Bg6 {[%clk 0:01:15.6]} 22. Nd5 {[%clk
0:00:50.4]} 22... Nb6 {[%clk 0:01:11.1]} 23. Nxb6+ {[%clk 0:00:39.4]} 23... cxb6
{[%clk 0:01:12]} 24. Rdh1 {[%clk 0:00:39]} 24... h5 {[%clk 0:01:09.8]} 25. Be2
{[%clk 0:00:27.4]} 25... Rd5 {[%clk 0:01:09.3]} 26. Bc4 {[%clk 0:00:24.1]} 26...
Rf5 {[%clk 0:01:08.2]} 27. R4h2 {[%clk 0:00:22.3]} 27... Ne5 {[%clk 0:01:07.5]}
28. Be2 {[%clk 0:00:20.8]} 28... Kc7 {[%clk 0:01:00.3]} 29. Be7 {[%clk
0:00:20.3]} 29... Re8 {[%clk 0:00:54]} 30. Bh4 {[%clk 0:00:20.3]} 30... Ng4
{[%clk 0:00:40.7]} 31. Bg3+ {[%clk 0:00:19.7]} 31... Kc8 {[%clk 0:00:30]} 32.
Rxh5 {[%clk 0:00:08.5]} 32... Rxh5 {[%clk 0:00:16.7]} 33. Bxg4+ {[%clk
0:00:07.8]} 33... Rf5 {[%clk 0:00:17.4]} 34. Bxf5+ {[%clk 0:00:07.5]} 34... Bxf5
{[%clk 0:00:18.3]} 35. Rh4 {[%clk 0:00:05.7]} 35... Bg6 {[%clk 0:00:17.9]} 36.
Rc4+ {[%clk 0:00:05.7]} 36... Kd8 {[%clk 0:00:15.9]} 37. Bc7+ {[%clk 0:00:05.5]}
37... Kd7 {[%clk 0:00:15]} 38. Bxb6 {[%clk 0:00:06.4]} 38... Re1+ {[%clk
0:00:13.4]} 39. Kd2 {[%clk 0:00:06.3]} 39... Rb1 {[%clk 0:00:13.7]} 40. b4
{[%clk 0:00:06.3]} 40... axb4 {[%clk 0:00:12.3]} 41. cxb4 {[%clk 0:00:07.2]}
41... Rb2+ {[%clk 0:00:10.8]} 42. Ke3 {[%clk 0:00:07.4]} 42... Rb3+ {[%clk
0:00:11.3]} 43. Kf4 {[%clk 0:00:07.3]} 43... Rd3 {[%clk 0:00:11.2]} 44. Rc7+
{[%clk 0:00:05.4]} 44... Ke6 {[%clk 0:00:11]} 45. Rxb7 {[%clk 0:00:06.2]} 45...
Bh5 {[%clk 0:00:10.9]} 46. Kg5 {[%clk 0:00:06]} 46... Bg6 {[%clk 0:00:10.4]} 47.
Be3 {[%clk 0:00:06]} 47... Rd5+ {[%clk 0:00:09.8]} 48. Kf4 {[%clk 0:00:06.3]}
48... Rf5+ {[%clk 0:00:10.1]} 49. Kg3 {[%clk 0:00:07]} 49... Re5 {[%clk
0:00:10]} 50. Rb6+ {[%clk 0:00:07.6]} 50... Kf5 {[%clk 0:00:09.7]} 51. Rc6
{[%clk 0:00:06.8]} 51... Re4 {[%clk 0:00:09.9]} 52. Rc5+ {[%clk 0:00:06.9]}
52... Ke6 {[%clk 0:00:10]} 53. a5 {[%clk 0:00:06.8]} 53... Rxb4 {[%clk
0:00:09.5]} 54. Rc6+ {[%clk 0:00:07.4]} 54... Kd7 {[%clk 0:00:08.7]} 55. Rf6
{[%clk 0:00:06.3]} 55... Ra4 {[%clk 0:00:08.4]} 56. a6 {[%clk 0:00:06.6]} 56...
Ke7 {[%clk 0:00:07.9]} 57. Rc6 {[%clk 0:00:05.9]} 57... Be4 {[%clk 0:00:07.9]}
58. Rb6 {[%clk 0:00:05.8]} 58... Bd5 {[%clk 0:00:08.2]} 59. Rb5 {[%clk
0:00:05.1]} 59... Ke6 {[%clk 0:00:07.8]} 60. a7 {[%clk 0:00:04.8]} 60... Ra2
{[%clk 0:00:04.8]} 61. Rb8 {[%clk 0:00:04.6]} 61... Ra4 {[%clk 0:00:04.4]} 62.
Rd8 {[%clk 0:00:04.2]} 62... Ra3 {[%clk 0:00:03.7]} 63. Kf4 {[%clk 0:00:04.6]}
63... Ra4+ {[%clk 0:00:04.1]} 64. Kg5 {[%clk 0:00:04.9]} 64... Ra5 {[%clk
0:00:04.6]} 65. Re8+ {[%clk 0:00:04.7]} 65... Kd7 {[%clk 0:00:04.6]} 66. Re5
{[%clk 0:00:04.5]} 66... Kd6 {[%clk 0:00:03.8]} 67. Bf4 {[%clk 0:00:02.1]} 67...
Rxa7 {[%clk 0:00:04]} 68. Rf5+ {[%clk 0:00:02.3]} 68... Ke6 {[%clk 0:00:04.4]}
69. Re5+ {[%clk 0:00:02.5]} 69... Kd6 {[%clk 0:00:05]} 70. Re8+ {[%clk
0:00:02.5]} 70... Kc6 {[%clk 0:00:05.3]} 71. Rc8+ {[%clk 0:00:02.8]} 71... Kd7
{[%clk 0:00:05.1]} 72. Rc5 {[%clk 0:00:02.8]} 72... Ke6 {[%clk 0:00:05.6]} 73.
Rb5 {[%clk 0:00:02.6]} 73... Rd7 {[%clk 0:00:06]} 74. Rb6+ {[%clk 0:00:02.9]}
74... Ke7 {[%clk 0:00:06.6]} 75. Be5 {[%clk 0:00:03.3]} 75... f6+ {[%clk
0:00:07.1]} 76. Bxf6+ {[%clk 0:00:03.5]} 76... Kf7 {[%clk 0:00:07.7]} 77. Be5
{[%clk 0:00:04]} 77... Be6 {[%clk 0:00:07.7]} 78. Rb4 {[%clk 0:00:03.7]} 78...
Rd5 {[%clk 0:00:07.3]} 79. f4 {[%clk 0:00:03.2]} 79... Ke7 {[%clk 0:00:07.3]}
80. Rb2 {[%clk 0:00:03.6]} 80... Kd7 {[%clk 0:00:07.3]} 81. Rh2 {[%clk
0:00:04.1]} 81... Kc6 {[%clk 0:00:07.3]} 82. Rh7 {[%clk 0:00:04.6]} 82... Kc5
{[%clk 0:00:05.5]} 83. Rc7+ {[%clk 0:00:04.8]} 83... Kb4 {[%clk 0:00:05.5]} 84.
Kf6 {[%clk 0:00:05.4]} 84... Bh3 {[%clk 0:00:05.4]} 85. Ke7 {[%clk 0:00:04.8]}
85... Rb5 {[%clk 0:00:04.8]} 86. Rc2 {[%clk 0:00:04.2]} 86... Ka4 {[%clk
0:00:05]} 87. Kf6 {[%clk 0:00:03.5]} 87... Rb3 {[%clk 0:00:04]} 88. Rc4+ {[%clk
0:00:03.2]} 88... Rb4 {[%clk 0:00:04.3]} 89. Rc7 {[%clk 0:00:04.1]} 89... Rb3
{[%clk 0:00:04.3]} 90. Kg5 {[%clk 0:00:04.2]} 90... Kb4 {[%clk 0:00:04.1]} 91.
f5 {[%clk 0:00:04.5]} 91... Bxf5 {[%clk 0:00:04.1]} 92. Kxf5 {[%clk 0:00:04.6]}
92... Ka4 {[%clk 0:00:04.8]} 93. Ke4 {[%clk 0:00:04.5]} 93... Rb5 {[%clk
0:00:05.4]} 94. Bd4 {[%clk 0:00:04.4]} 94... Rb3 {[%clk 0:00:05.1]} 95. Kd5
{[%clk 0:00:04.6]} 95... Rb5+ {[%clk 0:00:05.5]} 96. Bc5 {[%clk 0:00:03.4]}
96... Kb3 {[%clk 0:00:04.3]} 97. Re7 {[%clk 0:00:04]} 97... Ka4 {[%clk
0:00:04.6]} 98. Re4+ {[%clk 0:00:03.3]} 98... Ka5 {[%clk 0:00:04.6]} 99. Kc6
{[%clk 0:00:02.6]} 99... Rb8 {[%clk 0:00:03]} 100. Re3 {[%clk 0:00:01.7]} 100...
Rc8+ {[%clk 0:00:03.2]} 101. Kd5 {[%clk 0:00:02.4]} 101... Rb8 {[%clk
0:00:03.6]} 102. Kc4 {[%clk 0:00:02.6]} 102... Ka6 {[%clk 0:00:01.8]} 103. Re7
{[%clk 0:00:02.1]} 103... Rb7 {[%clk 0:00:01.6]} 104. Re8 {[%clk 0:00:02.2]}
104... Rb8 {[%clk 0:00:01.3]} 105. Rxb8 {[%clk 0:00:02.2]} 105... Ka5 {[%clk
0:00:01.1]} 106. Rb6 {[%clk 0:00:02.7]} 106... Ka4 {[%clk 0:00:01.1]} 107. Ra6#
{[%clk 0:00:03.5]} 1-0

[Event "Early-Titled-Tuesday-Blitz-September-05-2023"]
[Site "Chess.com"]
[Date "2023.09.05"]
[Round "2"]
[White "DrCeltic"]
[Black "MarcoRiehle"]
[Result "0-1"]
[WhiteElo "2552"]
[BlackElo "2806"]
[TimeControl "180+1"]
[EndTime "8:12:59 PDT"]
[Termination "MarcoRiehle won by resignation"]

1. e4 {[%clk 0:03:00.9]} 1... e5 {[%clk 0:03:00.3]} 2. Nf3 {[%clk 0:03:00.7]}
2... Nf6 {[%clk 0:03:00.4]} 3. Nxe5 {[%clk 0:02:59.5]} 3... Nxe4 {[%clk
0:03:00.5]} 4. Qe2 {[%clk 0:02:49.6]} 4... Qe7 {[%clk 0:03:00.4]} 5. Qxe4 {[%clk
0:02:50]} 5... d6 {[%clk 0:02:54.6]} 6. d4 {[%clk 0:02:48.8]} 6... dxe5 {[%clk
0:02:53.6]} 7. dxe5 {[%clk 0:02:47.1]} 7... Nc6 {[%clk 0:02:51.7]} 8. Bb5 {[%clk
0:02:44.1]} 8... Bd7 {[%clk 0:02:48.6]} 9. Nc3 {[%clk 0:02:42.1]} 9... O-O-O
{[%clk 0:02:46.8]} 10. O-O {[%clk 0:02:35.7]} 10... a6 {[%clk 0:02:45.5]} 11.
Ba4 {[%clk 0:02:35]} 11... Nxe5 {[%clk 0:02:45]} 12. Bxd7+ {[%clk 0:02:34.5]}
12... Rxd7 {[%clk 0:02:45.9]} 13. Bf4 {[%clk 0:02:22.2]} 13... Ng6 {[%clk
0:02:44.9]} 14. Qxe7 {[%clk 0:02:14.2]} 14... Bxe7 {[%clk 0:02:45.8]} 15. Be3
{[%clk 0:02:14.6]} 15... Bf6 {[%clk 0:02:42.5]} 16. Ne4 {[%clk 0:02:09.1]} 16...
Bxb2 {[%clk 0:02:40.9]} 17. Rab1 {[%clk 0:02:09]} 17... Bd4 {[%clk 0:02:39.3]}
18. c3 {[%clk 0:01:58]} 18... Bxe3 {[%clk 0:02:36.6]} 19. fxe3 {[%clk
0:01:58.9]} 19... b6 {[%clk 0:02:37.1]} 20. Ng5 {[%clk 0:01:54.9]} 20... f6
{[%clk 0:02:33]} 21. Ne6 {[%clk 0:01:54.1]} 21... Re8 {[%clk 0:02:32]} 22. Nd4
{[%clk 0:01:49.8]} 22... Rxe3 {[%clk 0:02:31.1]} 0-1

[Event "Early-Titled-Tuesday-Blitz-September-05-2023"]
[Site "Chess.com"]
[Date "2023.09.05"]
[Round "2"]
[White "MasterKroket"]
[Black "TregubovP"]
[Result "0-1"]
[WhiteElo "2408"]
[BlackElo "2641"]
[TimeControl "180+1"]
[EndTime "8:13:21 PDT"]
[Termination "TregubovP won by resignation"]

1. e4 {[%clk 0:02:59.7]} 1... c5 {[%clk 0:02:58.5]} 2. Nf3 {[%clk 0:02:58.9]}
2... Nc6 {[%clk 0:02:58.6]} 3. d4 {[%clk 0:02:59.2]} 3... cxd4 {[%clk
0:02:58.8]} 4. Nxd4 {[%clk 0:03:00.1]} 4... Nf6 {[%clk 0:02:58.7]} 5. Nc3 {[%clk
0:03:00.2]} 5... e6 {[%clk 0:02:59.4]} 6. Ndb5 {[%clk 0:03:00]} 6... Bb4 {[%clk
0:02:59.1]} 7. a3 {[%clk 0:02:57.8]} 7... Bxc3+ {[%clk 0:02:59.4]} 8. Nxc3
{[%clk 0:02:58.7]} 8... d5 {[%clk 0:02:59.2]} 9. exd5 {[%clk 0:02:59.2]} 9...
exd5 {[%clk 0:02:59.3]} 10. Bd3 {[%clk 0:02:59.5]} 10... O-O {[%clk 0:02:59.7]}
11. O-O {[%clk 0:02:58.6]} 11... d4 {[%clk 0:03:00.3]} 12. Ne4 {[%clk
0:02:57.2]} 12... Bf5 {[%clk 0:03:00.1]} 13. Qf3 {[%clk 0:02:52.3]} 13... Bxe4
{[%clk 0:02:52]} 14. Bxe4 {[%clk 0:02:51.9]} 14... Nxe4 {[%clk 0:02:47.3]} 15.
Qxe4 {[%clk 0:02:52]} 15... Re8 {[%clk 0:02:48]} 16. Qf3 {[%clk 0:02:47.1]}
16... Qb6 {[%clk 0:02:45.7]} 17. Rd1 {[%clk 0:02:36.6]} 17... Ne5 {[%clk
0:02:36.8]} 18. Qf4 {[%clk 0:02:30.6]} 18... Rad8 {[%clk 0:02:29.9]} 19. b3
{[%clk 0:02:25.9]} 19... Qc5 {[%clk 0:02:20.6]} 20. Qd2 {[%clk 0:02:11.4]} 20...
d3 {[%clk 0:02:12.4]} 21. c4 {[%clk 0:02:09.9]} 21... Ng4 {[%clk 0:02:04.4]} 22.
b4 {[%clk 0:02:01.3]} 22... Qh5 {[%clk 0:01:57]} 23. h3 {[%clk 0:01:55.1]} 23...
Nxf2 {[%clk 0:01:57]} 0-1

[Event "Early-Titled-Tuesday-Blitz-September-05-2023"]
[Site "Chess.com"]
[Date "2023.09.05"]
[Round "2"]
[White "Jmf24"]
[Black "Barbus89"]
[Result "0-1"]
[WhiteElo "2383"]
[BlackElo "2549"]
[TimeControl "180+1"]
[EndTime "8:13:26 PDT"]
[Termination "Barbus89 won by resignation"]

1. e4 {[%clk 0:02:40.8]} 1... c6 {[%clk 0:02:59.2]} 2. d4 {[%clk 0:02:40.7]}
2... d5 {[%clk 0:03:00.1]} 3. Nd2 {[%clk 0:02:39.5]} 3... dxe4 {[%clk
0:02:58.8]} 4. Nxe4 {[%clk 0:02:39.5]} 4... Nf6 {[%clk 0:02:59.7]} 5. Nxf6+
{[%clk 0:02:39]} 5... exf6 {[%clk 0:03:00.6]} 6. c3 {[%clk 0:02:37.9]} 6... Bd6
{[%clk 0:03:01.2]} 7. Bd3 {[%clk 0:02:38.4]} 7... O-O {[%clk 0:03:01.8]} 8. Ne2
{[%clk 0:02:39.3]} 8... Kh8 {[%clk 0:03:02.7]} 9. Qc2 {[%clk 0:02:39.8]} 9...
Re8 {[%clk 0:03:02.6]} 10. Bxh7 {[%clk 0:02:36.6]} 10... g6 {[%clk 0:03:02.1]}
11. Bxg6 {[%clk 0:02:36.9]} 11... fxg6 {[%clk 0:03:03]} 12. Qxg6 {[%clk
0:02:37.4]} 12... Nd7 {[%clk 0:03:00.3]} 13. Be3 {[%clk 0:02:31.6]} 13... Nf8
{[%clk 0:02:59.7]} 14. Qh6+ {[%clk 0:02:31.3]} 14... Nh7 {[%clk 0:02:59.6]} 15.
O-O-O {[%clk 0:02:31.3]} 15... Bf8 {[%clk 0:02:52.9]} 16. Qg6 {[%clk 0:02:30]}
16... Be6 {[%clk 0:02:48]} 17. h4 {[%clk 0:02:16.8]} 17... Qd5 {[%clk 0:02:45]}
18. Nf4 {[%clk 0:02:06]} 18... Qxa2 {[%clk 0:02:37.6]} 19. h5 {[%clk 0:02:00.1]}
19... Bd6 {[%clk 0:02:11.1]} 20. h6 {[%clk 0:01:57.6]} 20... Rg8 {[%clk
0:02:10.5]} 21. Qc2 {[%clk 0:01:55.3]} 21... Bxf4 {[%clk 0:02:09.4]} 22. Bxf4
{[%clk 0:01:56.2]} 22... Bb3 {[%clk 0:02:07.6]} 23. Qf5 {[%clk 0:01:54.4]} 23...
Qa1+ {[%clk 0:02:05.1]} 24. Kd2 {[%clk 0:01:53.7]} 24... Qxb2+ {[%clk
0:02:04.6]} 0-1

[Event "Early-Titled-Tuesday-Blitz-September-05-2023"]
[Site "Chess.com"]
[Date "2023.09.05"]
[Round "2"]
[White "AlexPapasimakopoulos"]
[Black "chessculator16"]
[Result "1-0"]
[WhiteElo "2710"]
[BlackElo "2204"]
[TimeControl "180+1"]
[EndTime "8:13:36 PDT"]
[Termination "AlexPapasimakopoulos won by resignation"]

1. d4 {[%clk 0:03:00.9]} 1... d5 {[%clk 0:02:58.8]} 2. c4 {[%clk 0:03:01.1]}
2... c6 {[%clk 0:02:57.9]} 3. cxd5 {[%clk 0:03:00.2]} 3... cxd5 {[%clk
0:02:57.8]} 4. Bf4 {[%clk 0:03:00.6]} 4... Nc6 {[%clk 0:02:57.5]} 5. e3 {[%clk
0:03:00.6]} 5... Nf6 {[%clk 0:02:57.1]} 6. Nc3 {[%clk 0:03:01.1]} 6... a6 {[%clk
0:02:57.4]} 7. Bd3 {[%clk 0:03:01.4]} 7... Bg4 {[%clk 0:02:57.2]} 8. Nge2 {[%clk
0:03:01.4]} 8... e6 {[%clk 0:02:57.2]} 9. O-O {[%clk 0:03:01.6]} 9... Bd6 {[%clk
0:02:56.6]} 10. f3 {[%clk 0:03:01.9]} 10... Bh5 {[%clk 0:02:56.3]} 11. Rc1
{[%clk 0:03:02.4]} 11... O-O {[%clk 0:02:55.4]} 12. Na4 {[%clk 0:03:00.5]} 12...
Nb4 {[%clk 0:02:50.1]} 13. Bb1 {[%clk 0:02:58.3]} 13... Bg6 {[%clk 0:02:46.2]}
14. Bxg6 {[%clk 0:02:53.9]} 14... hxg6 {[%clk 0:02:45.8]} 15. a3 {[%clk
0:02:54.4]} 15... Nc6 {[%clk 0:02:45]} 16. b4 {[%clk 0:02:54.3]} 16... Bxf4
{[%clk 0:02:40.4]} 17. Nxf4 {[%clk 0:02:54.1]} 17... Nd7 {[%clk 0:02:38.9]} 18.
Nc5 {[%clk 0:02:48.8]} 18... Nxc5 {[%clk 0:02:36]} 19. Rxc5 {[%clk 0:02:49.7]}
19... Rc8 {[%clk 0:02:35.9]} 20. Qd2 {[%clk 0:02:44.4]} 20... Na7 {[%clk
0:02:33.6]} 21. Rfc1 {[%clk 0:02:42.6]} 21... Qd7 {[%clk 0:02:33.7]} 22. Nd3
{[%clk 0:02:38.1]} 22... Nb5 {[%clk 0:02:31.3]} 23. Ne5 {[%clk 0:02:36]} 23...
Rxc5 {[%clk 0:02:16.1]} 24. Nxd7 {[%clk 0:02:23.1]} 24... Rxc1+ {[%clk
0:02:15.5]} 25. Qxc1 {[%clk 0:02:24]} 25... Rd8 {[%clk 0:02:14.9]} 26. a4 {[%clk
0:02:20.7]} 26... Kh7 {[%clk 0:02:04.8]} 27. axb5 {[%clk 0:02:14]} 27... Rxd7
{[%clk 0:02:04.3]} 28. bxa6 {[%clk 0:02:13.8]} 28... bxa6 {[%clk 0:02:04.2]} 29.
Qc6 {[%clk 0:02:14.1]} 29... Rd8 {[%clk 0:02:03.5]} 30. Qxa6 {[%clk 0:02:12.9]}
30... Rb8 {[%clk 0:02:03.6]} 31. b5 {[%clk 0:02:12.9]} 31... g5 {[%clk
0:01:59.1]} 32. h3 {[%clk 0:02:10.5]} 1-0

[Event "Early-Titled-Tuesday-Blitz-September-05-2023"]
[Site "Chess.com"]
[Date "2023.09.05"]
[Round "2"]
[White "pirulillo"]
[Black "Shuvalov"]
[Result "1-0"]
[WhiteElo "2302"]
[BlackElo "2485"]
[TimeControl "180+1"]
[EndTime "8:13:46 PDT"]
[Termination "pirulillo won by checkmate"]

1. e4 {[%clk 0:02:59.5]} 1... e6 {[%clk 0:02:59.7]} 2. d3 {[%clk 0:02:56.7]}
2... d5 {[%clk 0:03:00.6]} 3. Nd2 {[%clk 0:02:56.4]} 3... c5 {[%clk 0:03:01]} 4.
Ngf3 {[%clk 0:02:56]} 4... Nc6 {[%clk 0:03:01.5]} 5. g3 {[%clk 0:02:56.2]} 5...
Nf6 {[%clk 0:03:01.9]} 6. Bg2 {[%clk 0:02:56.2]} 6... Be7 {[%clk 0:03:02.6]} 7.
O-O {[%clk 0:02:56.1]} 7... O-O {[%clk 0:03:03.3]} 8. e5 {[%clk 0:02:55.2]} 8...
Nd7 {[%clk 0:03:03.1]} 9. Re1 {[%clk 0:02:56.1]} 9... b5 {[%clk 0:03:03.5]} 10.
a4 {[%clk 0:02:55.1]} 10... bxa4 {[%clk 0:02:58.7]} 11. Rxa4 {[%clk 0:02:53.9]}
11... a5 {[%clk 0:02:58.9]} 12. Nf1 {[%clk 0:02:52.4]} 12... Ba6 {[%clk
0:02:58.2]} 13. h4 {[%clk 0:02:50.7]} 13... Nb4 {[%clk 0:02:58.1]} 14. Bf4
{[%clk 0:02:47]} 14... Rc8 {[%clk 0:02:25]} 15. N1h2 {[%clk 0:02:41.2]} 15... c4
{[%clk 0:02:21.4]} 16. d4 {[%clk 0:02:37.9]} 16... c3 {[%clk 0:02:21]} 17. b3
{[%clk 0:02:36.1]} 17... Bb5 {[%clk 0:02:08.4]} 18. Ra1 {[%clk 0:02:34.9]} 18...
Ra8 {[%clk 0:02:07.8]} 19. Ng5 {[%clk 0:02:30.6]} 19... Qe8 {[%clk 0:01:57.7]}
20. Bf1 {[%clk 0:02:22.8]} 20... Bxf1 {[%clk 0:01:52.6]} 21. Rxf1 {[%clk
0:02:21.2]} 21... Nb6 {[%clk 0:01:52.3]} 22. Ng4 {[%clk 0:02:21.2]} 22... a4
{[%clk 0:01:49]} 23. Nf6+ {[%clk 0:02:19.3]} 23... gxf6 {[%clk 0:01:32.9]} 24.
exf6 {[%clk 0:02:20.2]} 24... Bxf6 {[%clk 0:01:33]} 25. Qh5 {[%clk 0:02:19.8]}
25... Bxg5 {[%clk 0:01:32.7]} 26. Qxg5+ {[%clk 0:02:19.3]} 26... Kh8 {[%clk
0:01:32.1]} 27. Qf6+ {[%clk 0:02:19.4]} 27... Kg8 {[%clk 0:01:31.2]} 28. Bh6
{[%clk 0:02:20.3]} 28... Qd8 {[%clk 0:01:21.4]} 29. Qg7# {[%clk 0:02:19.6]} 1-0

[Event "Early-Titled-Tuesday-Blitz-September-05-2023"]
[Site "Chess.com"]
[Date "2023.09.05"]
[Round "2"]
[White "vesalhamedinia"]
[Black "LeoWin2012"]
[Result "1-0"]
[WhiteElo "2488"]
[BlackElo "2236"]
[TimeControl "180+1"]
[EndTime "8:13:49 PDT"]
[Termination "vesalhamedinia won by resignation"]

1. d4 {[%clk 0:03:00.9]} 1... Nf6 {[%clk 0:02:58.1]} 2. c4 {[%clk 0:03:01.2]}
2... g6 {[%clk 0:02:58.1]} 3. e3 {[%clk 0:03:01.3]} 3... Bg7 {[%clk 0:02:58.3]}
4. Nf3 {[%clk 0:03:02.2]} 4... O-O {[%clk 0:02:58.5]} 5. Nc3 {[%clk 0:03:03.1]}
5... d6 {[%clk 0:02:58.9]} 6. Be2 {[%clk 0:03:03.7]} 6... Nbd7 {[%clk
0:02:59.2]} 7. O-O {[%clk 0:03:04.3]} 7... Re8 {[%clk 0:02:59.2]} 8. b4 {[%clk
0:03:04.6]} 8... e5 {[%clk 0:02:58.8]} 9. Bb2 {[%clk 0:03:04.6]} 9... e4 {[%clk
0:02:55.9]} 10. Nd2 {[%clk 0:03:04.6]} 10... c6 {[%clk 0:02:55.4]} 11. d5 {[%clk
0:03:03.8]} 11... cxd5 {[%clk 0:02:51.9]} 12. cxd5 {[%clk 0:03:04.7]} 12... Nb6
{[%clk 0:02:33.6]} 13. Qb3 {[%clk 0:02:58.6]} 13... Bf5 {[%clk 0:02:30.9]} 14.
Rac1 {[%clk 0:02:57.7]} 14... Nfd7 {[%clk 0:02:23]} 15. a4 {[%clk 0:02:56.8]}
15... Qg5 {[%clk 0:02:05.4]} 16. Rfd1 {[%clk 0:02:48.4]} 16... a5 {[%clk
0:01:48]} 17. bxa5 {[%clk 0:02:31.8]} 17... Rxa5 {[%clk 0:01:48.9]} 18. Qb4
{[%clk 0:02:25.5]} 18... Bxc3 {[%clk 0:01:31.5]} 19. Qxc3 {[%clk 0:02:23]} 19...
Ne5 {[%clk 0:01:21.3]} 20. Qxa5 {[%clk 0:02:20.7]} 20... Nf3+ {[%clk 0:01:14.7]}
21. Nxf3 {[%clk 0:02:20.1]} 21... exf3 {[%clk 0:01:15.6]} 22. Bxf3 {[%clk
0:02:21]} 22... Be4 {[%clk 0:01:15.5]} 23. Bxe4 {[%clk 0:02:21.1]} 23... Rxe4
{[%clk 0:01:16]} 24. Qxb6 {[%clk 0:02:21.3]} 24... Rg4 {[%clk 0:01:15.9]} 25.
Rc8+ {[%clk 0:02:19.8]} 1-0

[Event "Early-Titled-Tuesday-Blitz-September-05-2023"]
[Site "Chess.com"]
[Date "2023.09.05"]
[Round "2"]
[White "meoluoi91"]
[Black "Msb2"]
[Result "0-1"]
[WhiteElo "2678"]
[BlackElo "3103"]
[TimeControl "180+1"]
[EndTime "8:14:01 PDT"]
[Termination "Msb2 won by resignation"]

1. Nf3 {[%clk 0:02:59.6]} 1... d5 {[%clk 0:03:00.2]} 2. g3 {[%clk 0:02:59.6]}
2... e6 {[%clk 0:03:00.4]} 3. Bg2 {[%clk 0:03:00.2]} 3... Nf6 {[%clk 0:03:01.1]}
4. O-O {[%clk 0:03:00.3]} 4... Bd6 {[%clk 0:03:01.9]} 5. c4 {[%clk 0:02:58.7]}
5... O-O {[%clk 0:03:01.9]} 6. b3 {[%clk 0:02:56]} 6... Nc6 {[%clk 0:03:02.3]}
7. Bb2 {[%clk 0:02:56.1]} 7... d4 {[%clk 0:03:02.9]} 8. e3 {[%clk 0:02:54.7]}
8... e5 {[%clk 0:03:03]} 9. exd4 {[%clk 0:02:52.2]} 9... Nxd4 {[%clk 0:03:03.9]}
10. Nxd4 {[%clk 0:02:50.8]} 10... exd4 {[%clk 0:03:04.8]} 11. d3 {[%clk
0:02:48.5]} 11... c5 {[%clk 0:03:05.1]} 12. Nd2 {[%clk 0:02:41.9]} 12... Bg4
{[%clk 0:03:04.3]} 13. Qc2 {[%clk 0:02:41.4]} 13... Qd7 {[%clk 0:03:02.5]} 14.
Rfe1 {[%clk 0:02:41.6]} 14... Rae8 {[%clk 0:03:02]} 15. b4 {[%clk 0:02:36.4]}
15... Bh3 {[%clk 0:02:54.3]} 16. Bh1 {[%clk 0:02:34.5]} 16... cxb4 {[%clk
0:02:07.5]} 17. Bxd4 {[%clk 0:02:00.2]} 17... Bxg3 {[%clk 0:02:07.5]} 18. Bxf6
{[%clk 0:01:53.5]} 18... Be5 {[%clk 0:02:07.8]} 19. Bh4 {[%clk 0:01:45.9]} 19...
Bxa1 {[%clk 0:02:07.3]} 20. Rxa1 {[%clk 0:01:45.4]} 20... Qd4 {[%clk 0:02:07.3]}
21. Rb1 {[%clk 0:01:24]} 21... Qxh4 {[%clk 0:02:05.7]} 22. Bxb7 {[%clk
0:01:16.4]} 22... Re2 {[%clk 0:02:04.7]} 0-1

[Event "Early-Titled-Tuesday-Blitz-September-05-2023"]
[Site "Chess.com"]
[Date "2023.09.05"]
[Round "2"]
[White "Ural_bogatyr"]
[Black "secretsuperstar7"]
[Result "1-0"]
[WhiteElo "2548"]
[BlackElo "2377"]
[TimeControl "180+1"]
[EndTime "8:14:01 PDT"]
[Termination "Ural_bogatyr won by resignation"]

1. d4 {[%clk 0:02:57.2]} 1... d5 {[%clk 0:02:54.4]} 2. Nc3 {[%clk 0:02:57.1]}
2... Nf6 {[%clk 0:02:52.9]} 3. Bf4 {[%clk 0:02:57.6]} 3... e6 {[%clk 0:02:50.6]}
4. Nb5 {[%clk 0:02:56.7]} 4... Na6 {[%clk 0:02:49.4]} 5. e3 {[%clk 0:02:56.2]}
5... c6 {[%clk 0:02:47.7]} 6. Nc3 {[%clk 0:02:55.6]} 6... Nc7 {[%clk 0:02:47.4]}
7. Nf3 {[%clk 0:02:53.7]} 7... Bb4 {[%clk 0:02:40.4]} 8. Bd3 {[%clk 0:02:48.7]}
8... Ne4 {[%clk 0:02:36.9]} 9. Bxe4 {[%clk 0:02:48]} 9... dxe4 {[%clk
0:02:36.7]} 10. Nd2 {[%clk 0:02:42.8]} 10... f5 {[%clk 0:02:18.7]} 11. Qh5+
{[%clk 0:02:36.7]} 11... g6 {[%clk 0:02:18.2]} 12. Qh6 {[%clk 0:02:36.9]} 12...
Bf8 {[%clk 0:02:16]} 13. Qg5 {[%clk 0:02:31.7]} 13... Be7 {[%clk 0:02:14.6]} 14.
Qg3 {[%clk 0:02:30.4]} 14... g5 {[%clk 0:02:01.5]} 15. Bxc7 {[%clk 0:02:29.5]}
15... Qd7 {[%clk 0:01:53.1]} 16. Be5 {[%clk 0:02:28]} 16... Rg8 {[%clk
0:01:52.3]} 17. h4 {[%clk 0:02:26.7]} 17... b5 {[%clk 0:01:44.3]} 18. hxg5
{[%clk 0:02:23.5]} 18... Bxg5 {[%clk 0:01:44.3]} 19. Qh3 {[%clk 0:02:22.3]}
19... h6 {[%clk 0:01:40.7]} 20. Ne2 {[%clk 0:02:18.1]} 20... Ba6 {[%clk
0:01:35.3]} 21. Qh5+ {[%clk 0:02:16.1]} 21... Kd8 {[%clk 0:01:34.3]} 22. Nf4
{[%clk 0:02:10.4]} 22... Kc8 {[%clk 0:01:28.1]} 23. Nh3 {[%clk 0:02:08.2]} 23...
Kb7 {[%clk 0:01:20]} 24. Nxg5 {[%clk 0:02:07.6]} 24... Rxg5 {[%clk 0:01:16.8]}
25. Qxh6 {[%clk 0:02:07.6]} 25... Kb6 {[%clk 0:01:16.1]} 26. Qxg5 {[%clk
0:02:06.6]} 1-0